bitfinex/quotes_ETHUSD_20251125
["timestamp","ask_amount","ask_price","bid_price","bid_amount"]
[1764057689407,0.72559411,2905.7,2905.1,0.3826]
[1764057689408,0.405504,2905.7,2905.1,0.3826]
[1764057690126,1.13109811,2905.7,2905.1,0.3826]
[1764057690618,3.4408153,2906.3,2905.1,0.3826]
[1764057690826,9.450624,2906.5,2905.7,0.2803]
[1764057690994,0.0494,2906.7,2906.2,0.2803]
[1764057690995,9.351592,2906.6,2906.2,0.2803]
[1764057691194,3.48974136,2906.7,2906.2,0.2803]
[1764057691392,9.347147,2906.6,2906.2,0.2803]
[1764057691619,0.72559411,2906.6,2906.2,0.2803]
[1764057691920,0.03402069,2906.5,2905.7,0.1]
[1764057692122,0.03402069,2906.5,2906.0,0.1]
[1764057692285,0.405504,2906.4,2906.0,0.1]
[1764057692513,0.03402069,2906.3,2906.0,0.3803]
[1764057692827,0.405504,2906.3,2906.2,0.2803]
[1764057693010,3.92410015,2906.9,2906.3,0.1]
[1764057693213,3.44202779,2907.0,2906.5,0.2803]
[1764057693381,0.72559411,2906.9,2906.2,0.221]
[1764057693585,0.72559411,2906.9,2906.2,0.321]
[1764057693822,1.20949411,2906.9,2906.2,0.321]
[1764057694021,0.002,2907.0,2906.2,0.1]
[1764057694226,0.002,2907.0,2906.3,0.2803]
[1764057694437,0.002,2907.0,2906.6,0.1]
[1764057694926,0.002,2907.0,2906.6,0.3803]
[1764057695136,0.002,2907.0,2906.9,0.3803]
[1764057695436,0.002,2907.0,2906.9,4.04139081]
[1764057695732,0.002,2907.0,2906.9,4.32169081]
[1764057695888,0.002,2907.0,2906.9,0.2803]
[1764057696092,0.002,2907.0,2906.9,4.32169081]
[1764057698191,0.002,2907.0,2906.9,0.8816]
[1764057698496,0.002,2907.0,2906.9,0.2803]
[1764057698697,0.002,2907.0,2906.9,0.5606]
[1764057698925,0.002,2907.0,2906.9,0.8816]
[1764057699111,0.002,2907.0,2906.9,0.6013]
[1764057699994,0.002,2907.0,2906.9,0.7816]
[1764057700226,0.002,2907.0,2906.9,0.8816]
[1764057700524,0.002,2907.0,2906.9,0.6013]
[1764057701610,0.405504,2906.9,2906.4,0.1]
[1764057701812,0.599304,2906.9,2906.4,0.1]
[1764057702015,1.083204,2906.9,2906.5,0.221]
[1764057702224,0.599304,2906.9,2906.5,0.221]
[1764057702393,0.405504,2906.9,2906.5,0.321]
[1764057702591,0.462,2906.6,2906.3,0.1]
[1764057702910,0.002,2907.0,2906.5,0.3803]
[1764057703705,1.13109811,2906.9,2906.5,0.3803]
[1764057703915,0.405504,2906.8,2906.3,0.1]
[1764057704909,0.405504,2906.8,2906.3,0.3803]
[1764057705117,0.405504,2906.8,2906.6,0.1]
[1764057705923,0.405504,2906.9,2906.7,0.2803]
[1764057706334,0.002,2907.0,2906.9,0.1]
[1764057706534,0.002,2907.0,2906.9,0.3803]
[1764057707646,0.002,2907.0,2906.9,0.6606]
[1764057708247,0.002,2907.0,2906.9,4.10069081]
[1764057708423,0.002,2907.0,2906.9,3.82039081]
[1764057708618,0.002,2907.0,2906.9,4.10069081]
[1764057708928,0.002,2907.0,2906.9,0.6013]
[1764057710847,0.002,2907.0,2906.9,0.2803]
[1764057711140,0.002,2907.0,2906.9,0.8816]
[1764057711929,0.002,2907.0,2906.9,0.6013]
[1764057712134,0.002,2907.0,2906.9,0.221]
[1764057712643,0.002,2907.0,2906.9,0.5013]
[1764057712822,0.002,2907.0,2906.9,0.6013]
[1764057713638,0.002,2907.0,2906.9,0.8816]
[1764057713949,0.002,2907.0,2906.9,0.6013]
[1764057714459,0.002,2907.0,2906.9,4.32169081]
[1764057714945,0.002,2907.0,2906.9,4.35609171]
[1764057716145,0.002,2907.0,2906.9,4.32169081]
[1764057716710,0.002,2907.0,2906.9,4.10069081]
[1764057716915,0.002,2907.0,2906.9,4.32169081]
[1764057717350,0.002,2907.0,2906.9,0.6013]
[1764057717527,0.002,2907.0,2906.9,4.04139081]
[1764057718136,0.002,2907.0,2906.9,0.6013]
[1764057718947,0.002,2907.0,2906.9,4.32169081]
[1764057719939,0.002,2907.0,2906.9,0.6013]
[1764057720157,0.002,2907.0,2906.9,0.3803]
[1764057720328,0.002,2907.0,2906.9,4.32169081]
[1764057720658,0.002,2907.0,2906.9,0.3803]
[1764057721156,0.002,2907.0,2906.9,0.1]
[1764057721751,0.002,2907.0,2906.9,0.321]
[1764057722154,0.5003,2907.0,2906.5,0.001]
[1764057722355,0.5003,2907.0,2906.6,0.321]
[1764057722729,0.4983,2906.7,2906.5,0.001]
[1764057722923,0.4983,2906.7,2906.6,0.221]
[1764057723150,1.372704,2906.6,2906.5,0.001]
[1764057724364,5.53874399,2906.6,2906.5,0.001]
[1764057727962,5.06984399,2906.6,2906.5,0.001]
[1764057728164,5.53874399,2906.6,2906.5,0.001]
[1764057731569,11.46063199,2906.6,2906.5,0.001]
[1764057731869,5.53874399,2906.6,2906.5,0.001]
[1764057732554,8.29229099,2906.6,2906.5,0.001]
[1764057732765,9.32651162,2906.6,2906.5,0.001]
[1764057733068,9.88562962,2906.6,2906.5,0.001]
[1764057733246,8.61188462,2906.6,2906.5,0.001]
[1764057733568,8.92496462,2906.6,2906.5,0.001]
[1764057733887,6.57296462,2906.6,2906.5,0.001]
[1764057734048,9.69956862,2906.6,2906.5,0.001]
[1764057735078,6.57496462,2906.6,2906.5,0.001]
[1764057735487,8.62073362,2906.6,2906.5,0.001]
[1764057735649,6.57496462,2906.6,2906.5,0.001]
[1764057736775,5.54074399,2906.6,2906.5,0.001]
[1764057736982,4.57354399,2906.6,2906.5,0.001]
[1764057737284,5.07184399,2906.6,2906.5,0.001]
[1764057738353,0.002,2906.6,2906.5,0.2813]
[1764057738588,0.002,2906.6,2906.5,0.6616]
[1764057739660,0.002,2906.6,2906.5,0.6023]
[1764057739990,0.002,2906.6,2906.5,0.3813]
[1764057740196,0.002,2906.6,2906.5,0.5023]
[1764057740398,0.002,2906.6,2906.5,0.001]
[1764057740689,0.9384,2906.6,2906.5,0.001]
[1764057741091,4.78434988,2906.6,2906.5,0.001]
[1764057743657,5.50994399,2906.6,2906.5,0.001]
[1764057747183,5.54396468,2906.6,2906.5,0.001]
[1764057747484,26.26240668,2906.6,2906.5,0.001]
[1764057747685,26.22838599,2906.6,2906.5,0.001]
[1764057747886,24.94815182,2906.6,2906.5,0.001]
[1764057748296,22.97721582,2906.6,2906.5,0.001]
[1764057748471,17.94888782,2906.6,2906.5,0.001]
[1764057748670,16.00747582,2906.6,2906.5,0.001]
[1764057749115,12.97459826,2906.6,2906.5,0.001]
[1764057749407,5.42201382,2906.6,2906.5,0.001]
[1764057749597,5.45603451,2906.6,2906.5,0.001]
[1764057749800,5.54396468,2906.6,2906.5,0.001]
[1764057749992,5.50994399,2906.6,2906.5,0.001]
[1764057750388,5.54396468,2906.6,2906.5,0.001]
[1764057751216,5.82803305,2906.6,2906.5,0.001]
[1764057751509,5.37543305,2906.6,2906.5,0.001]
[1764057752290,6.56110421,2906.6,2906.5,0.001]
[1764057752911,6.5951249,2906.6,2906.5,0.001]
[1764057753115,6.56110421,2906.6,2906.5,0.001]
[1764057753294,6.10850421,2906.6,2906.5,0.001]
[1764057753497,5.3829101,2906.6,2906.5,0.001]
[1764057753692,3.84794988,2906.6,2906.5,0.001]
[1764057753884,4.57354399,2906.6,2906.5,0.001]
[1764057756025,0.002,2906.6,2906.5,0.3813]
[1764057756181,0.002,2906.6,2906.5,0.6616]
[1764057756822,0.891304,2906.6,2906.5,0.001]
[1764057757002,1.343904,2906.6,2906.5,0.001]
[1764057758616,5.50994399,2906.6,2906.5,0.001]
[1764057758819,5.54396468,2906.6,2906.5,0.001]
[1764057759192,5.05734399,2906.6,2906.5,0.001]
[1764057759529,5.50994399,2906.6,2906.5,0.001]
[1764057760521,5.54396468,2906.6,2906.5,0.001]
[1764057761106,13.34919071,2906.6,2906.5,0.001]
[1764057761319,13.45307703,2906.6,2906.5,0.001]
[1764057762015,17.64112803,2906.6,2906.5,0.001]
[1764057762712,18.37387058,2906.6,2906.5,0.001]
[1764057763092,27.91668258,2906.6,2906.5,0.001]
[1764057764010,6.69870258,2906.6,2906.5,0.001]
[1764057764334,28.27689958,2906.6,2906.5,0.001]
[1764057764830,29.19228774,2906.6,2906.5,0.001]
[1764057765131,37.61409074,2906.6,2906.5,0.001]
[1764057765328,37.10523974,2906.6,2906.5,0.001]
[1764057765537,27.50168274,2906.6,2906.5,0.001]
[1764057765830,24.95771558,2906.6,2906.5,0.001]
[1764057766001,24.10271558,2906.6,2906.5,0.001]
[1764057766938,22.53304658,2906.6,2906.5,0.001]
[1764057767237,17.65617558,2906.6,2906.5,0.001]
[1764057767435,14.10232658,2906.6,2906.5,0.001]
[1764057767676,11.60236558,2906.6,2906.5,0.001]
[1764057768199,17.03957182,2906.6,2906.5,0.001]
[1764057768515,15.21820882,2906.6,2906.5,0.001]
[1764057768940,14.89961382,2906.6,2906.5,0.001]
[1764057769138,14.19681782,2906.6,2906.5,0.001]
[1764057769315,15.99681782,2906.6,2906.5,0.001]
[1764057769624,15.60316282,2906.6,2906.5,0.001]
[1764057769824,12.52552782,2906.6,2906.5,0.001]
[1764057770222,13.09690582,2906.6,2906.5,0.001]
[1764057770425,8.95805682,2906.6,2906.5,0.001]
[1764057771344,15.97218582,2906.6,2906.5,0.001]
[1764057772354,16.76636082,2906.6,2906.5,0.001]
[1764057772918,16.32249782,2906.6,2906.5,0.001]
[1764057773120,12.91675582,2906.6,2906.5,0.001]
[1764057773420,11.98026564,2906.6,2906.5,0.001]
[1764057773748,10.13812889,2906.6,2906.5,0.001]
[1764057773942,10.863723,2906.6,2906.5,0.001]
[1764057774344,11.1816255,2906.6,2906.5,0.001]
[1764057774539,12.1521195,2906.6,2906.5,0.001]
[1764057775659,14.7674425,2906.6,2906.5,0.001]
[1764057776218,15.0441665,2906.6,2906.5,0.001]
[1764057776549,20.6960875,2906.6,2906.5,0.001]
[1764057776952,19.3891645,2906.6,2906.5,0.001]
[1764057777122,18.0671645,2906.6,2906.5,0.001]
[1764057777523,11.0024535,2906.6,2906.5,0.001]
[1764057777835,18.0423555,2906.6,2906.5,0.001]
[1764057778656,16.6904125,2906.6,2906.5,0.001]
[1764057778862,16.37251,2906.6,2906.5,0.001]
[1764057779660,17.31751,2906.6,2906.5,0.001]
[1764057779839,17.776826,2906.6,2906.5,0.001]
[1764057780040,16.831826,2906.6,2906.5,0.001]
[1764057780541,22.8107501,2906.6,2906.5,0.001]
[1764057780739,24.4721651,2906.6,2906.5,0.001]
[1764057780939,23.5064911,2906.6,2906.5,0.001]
[1764057781478,0.870004,2906.3,2905.1,0.1023]
[1764057781658,3.39496605,2905.2,2905.1,0.1023]
[1764057782134,3.39496605,2905.2,2905.1,0.3826]
[1764057782560,4.57320192,2905.2,2905.1,0.3826]
[1764057782947,1.13109811,2905.1,2904.5,0.2803]
[1764057783462,1.13109811,2905.1,2905.0,0.2803]
[1764057783841,1.59559811,2905.1,2904.4,0.1]
[1764057784050,0.405504,2904.8,2904.2,0.3713]
[1764057784450,0.405504,2904.6,2904.2,0.3713]
[1764057784763,0.405504,2904.6,2904.3,0.2803]
[1764057784973,0.405504,2904.6,2904.2,0.091]
[1764057785175,0.405504,2904.6,2904.2,0.3713]
[1764057785379,1.13109811,2904.6,2904.5,0.2803]
[1764057785599,1.13109811,2904.6,2904.2,0.3713]
[1764057785600,1.13109811,2904.6,2904.2,0.091]
[1764057785873,1.13109811,2904.6,2904.2,0.3713]
[1764057786451,6.88586674,2904.5,2904.2,0.3713]
[1764057786809,0.405504,2904.4,2904.2,0.091]
[1764057786959,0.405504,2904.4,2904.3,0.2803]
[1764057787357,0.405504,2904.4,2904.3,0.5606]
[1764057788789,3.84855592,2904.4,2904.3,0.5606]
[1764057789006,3.84846586,2904.5,2904.3,0.5606]
[1764057789161,4.57405997,2904.5,2904.4,0.5606]
[1764057789658,4.57405997,2904.5,2904.4,0.2803]
[1764057789868,8.01702183,2904.5,2904.2,0.091]
[1764057790396,4.57405997,2904.5,2904.4,0.2803]
[1764057790915,9.57405997,2904.5,2904.4,0.2803]
[1764057791269,0.405504,2904.3,2904.1,0.001]
[1764057791792,0.405504,2904.3,2904.2,0.2803]
[1764057792279,1.330404,2904.3,2904.1,0.001]
[1764057792602,0.4645,2904.2,2904.1,0.001]
[1764057792809,0.405504,2904.3,2904.1,0.001]
[1764057792968,4.16888313,2904.2,2904.1,0.092]
[1764057793165,4.63338313,2904.2,2904.1,0.001]
[1764057793476,8.14204213,2904.2,2904.1,0.001]
[1764057793671,8.28005763,2904.2,2904.1,0.001]
[1764057793875,8.74045763,2904.2,2904.1,0.001]
[1764057794281,15.10126963,2904.2,2904.1,0.001]
[1764057794690,10.52142863,2904.2,2904.1,0.001]
[1764057795091,10.30042863,2904.2,2904.1,0.001]
[1764057795316,14.23248663,2904.2,2904.1,0.001]
[1764057796270,20.36363363,2904.2,2904.1,0.001]
[1764057796467,23.99163363,2904.2,2904.1,0.001]
[1764057796706,20.36363363,2904.2,2904.1,0.001]
[1764057797275,23.62586763,2904.2,2904.1,0.001]
[1764057797735,23.40318463,2904.2,2904.1,0.001]
[1764057798401,15.96011751,2904.2,2904.1,0.001]
[1764057798573,16.36562151,2904.2,2904.1,0.001]
[1764057799516,22.94801551,2904.2,2904.1,0.001]
[1764057799880,19.39477351,2904.2,2904.1,0.001]
[1764057800508,19.78918151,2904.2,2904.1,0.001]
[1764057801535,23.81124251,2904.2,2904.1,0.001]
[1764057801727,21.67394251,2904.2,2904.1,0.001]
[1764057802028,16.86054351,2904.2,2904.1,0.001]
[1764057802334,9.86082051,2904.2,2904.1,0.001]
[1764057802513,17.44394963,2904.2,2904.1,0.001]
[1764057802718,15.72996863,2904.2,2904.1,0.001]
[1764057803418,14.57791763,2904.2,2904.1,0.001]
[1764057804230,11.47177763,2904.2,2904.1,0.001]
[1764057804393,7.17699963,2904.2,2904.1,0.2813]
[1764057804598,3.58130452,2904.2,2904.1,0.3723]
[1764057805028,3.44328902,2904.2,2904.1,0.3723]
[1764057805253,4.16888313,2904.2,2904.1,0.3723]
[1764057806305,4.57438713,2904.2,2904.1,0.6526]
[1764057806524,4.16888313,2904.2,2904.1,0.6526]
[1764057806726,3.44320994,2904.3,2904.1,0.6526]
[1764057806942,3.44320994,2904.3,2904.2,0.5606]
[1764057807252,3.84871394,2904.3,2904.2,0.5606]
[1764057807744,4.57430805,2904.3,2904.2,0.5606]
[1764057808931,3.84871394,2904.3,2904.2,0.5606]
[1764057813319,0.405504,2904.3,2904.2,0.6606]
[1764057814150,8.44293808,2904.5,2904.2,0.6606]
[1764057814341,8.44293808,2904.5,2904.1,0.092]
[1764057814342,8.84844208,2904.5,2904.4,0.2803]
[1764057814537,5.405504,2904.5,2904.4,0.2803]
[1764057814851,8.84843737,2904.5,2904.4,0.5606]
[1764057815751,8.84843737,2904.5,2904.4,0.2803]
[1764057817842,8.84843737,2904.5,2904.4,0.5606]
[1764057819318,8.84843737,2904.5,2904.4,0.2803]
[1764057820522,5.0,2904.5,2904.4,0.6606]
[1764057820728,5.0,2904.5,2904.4,1.38619411]
[1764057820929,5.0,2904.5,2904.4,1.60719411]
[1764057821136,5.0,2904.5,2904.4,1.50719411]
[1764057821354,5.0,2904.5,2904.4,1.60719411]
[1764057822144,5.0,2904.5,2904.4,0.8816]
[1764057822353,5.0,2904.5,2904.4,0.6606]
[1764057822658,5.0,2904.5,2904.4,0.8816]
[1764057823023,3.44195446,2905.4,2904.4,0.8816]
[1764057823024,1.03460584,2905.7,2904.8,0.1]
[1764057823233,6.8834968,2905.5,2904.9,0.221]
[1764057823452,6.8834968,2905.5,2905.1,0.1]
[1764057823625,6.8834968,2905.5,2904.9,0.5013]
[1764057823626,3.4417484,2905.5,2905.4,0.3826]
[1764057824220,3.8472524,2905.5,2905.4,0.3826]
[1764057825474,3.44174749,2905.6,2905.4,0.7629]
[1764057825642,4.5728456,2905.6,2905.5,0.2803]
[1764057826535,4.5728456,2905.6,2905.5,0.5606]
[1764057827363,0.72559411,2905.6,2905.5,0.5606]
[1764057827790,0.002,2906.2,2905.5,0.5606]
[1764057827791,0.002,2906.2,2905.5,0.7806]
[1764057827965,3.44293051,2906.2,2906.1,0.2803]
[1764057828270,4.57402862,2906.2,2906.1,0.2803]
[1764057828477,3.44293051,2906.2,2906.1,0.2803]
[1764057828642,0.72559411,2906.1,2905.6,0.3803]
[1764057829038,0.03402069,2906.0,2905.4,0.1023]
[1764057829233,0.405504,2905.9,2905.1,0.3223]
[1764057829432,0.405504,2905.5,2905.1,0.2023]
[1764057829676,0.43952469,2905.5,2905.1,0.1023]
[1764057830380,0.405504,2905.5,2905.1,0.1023]
[1764057830672,3.07673086,2905.4,2905.1,0.1023]
[1764057831177,0.405504,2905.1,2904.7,0.1]
[1764057831351,3.48223486,2905.1,2904.6,0.22]
[1764057831561,6.88468158,2905.0,2904.5,0.1]
[1764057831746,6.91870227,2905.0,2904.5,0.1]
[1764057831945,6.88468158,2905.0,2904.5,0.1]
[1764057833969,0.896904,2905.1,2904.5,0.1]
[1764057833970,3.4425778,2904.8,2904.5,0.1]
[1764057834282,6.8851556,2904.8,2904.5,0.1]
[1764057834651,6.8851556,2904.8,2904.1,0.312]
[1764057834849,7.3765556,2904.8,2904.1,0.312]
[1764057835065,4.57367591,2904.8,2904.7,0.2803]
[1764057835673,3.4425778,2904.8,2904.7,0.6606]
[1764057835874,3.44210381,2905.2,2904.7,0.6606]
[1764057836067,1.13109811,2905.5,2904.8,0.2803]
[1764057836387,1.13109811,2905.5,2905.1,0.2803]
[1764057836748,1.13109811,2905.5,2905.1,0.3826]
[1764057837580,0.405504,2905.3,2904.4,0.2803]
[1764057837764,0.405504,2905.1,2904.6,0.1]
[1764057837963,6.88468158,2905.0,2904.6,0.1]
[1764057838272,6.88468158,2905.0,2904.4,0.2803]
[1764057838273,7.34438158,2905.0,2904.5,0.32]
[1764057838467,0.405504,2904.9,2904.5,0.1]
[1764057839658,0.865204,2904.9,2904.3,0.1]
[1764057839967,1.59079811,2904.9,2904.3,0.1]
[1764057840166,1.13109811,2904.7,2904.2,0.22]
[1764057840375,1.13109811,2904.7,2904.1,0.3723]
[1764057840376,1.13109811,2904.7,2904.1,0.092]
[1764057840791,1.59079811,2904.7,2904.1,0.092]
[1764057841399,0.405504,2904.5,2904.1,0.092]
[1764057842018,0.901404,2904.2,2904.1,0.001]
[1764057842180,5.07028713,2904.2,2904.1,0.001]
[1764057842513,8.83194813,2904.2,2904.1,0.001]
[1764057842843,8.38147913,2904.2,2904.1,0.001]
[1764057844618,14.56811213,2904.2,2904.1,0.001]
[1764057844821,8.68802113,2904.2,2904.1,0.001]
[1764057845384,5.52998713,2904.2,2904.1,0.001]
[1764057845586,8.55331413,2904.2,2904.1,0.001]
[1764057846727,9.38691213,2904.2,2904.1,0.001]
[1764057847638,14.66712813,2904.2,2904.1,0.001]
[1764057847925,7.53315713,2904.2,2904.1,0.001]
[1764057848095,5.52998713,2904.2,2904.1,0.001]
[1764057848492,8.25514613,2904.2,2904.1,0.001]
[1764057848900,10.97292413,2904.2,2904.1,0.001]
[1764057849542,10.97292413,2904.2,2904.0,0.001]
[1764057849543,2.279098,2904.1,2904.0,0.001]
[1764057849846,2.08669811,2904.1,2904.0,0.001]
[1764057850313,8.08940532,2904.1,2904.0,0.001]
[1764057850629,8.77392263,2904.1,2904.0,0.001]
[1764057850816,5.68973063,2904.1,2904.0,0.001]
[1764057851018,4.96413652,2904.1,2904.0,0.001]
[1764057851543,5.68973063,2904.1,2904.0,0.001]
[1764057852032,5.23003063,2904.1,2904.0,0.001]
[1764057852200,5.0704057,2904.1,2904.0,0.001]
[1764057853824,4.5745057,2904.1,2904.0,0.001]
[1764057854419,5.0704057,2904.1,2904.0,0.001]
[1764057855010,8.60897125,2904.1,2904.0,0.001]
[1764057855330,12.04679225,2904.1,2904.0,0.001]
[1764057855529,8.60897125,2904.1,2904.0,0.001]
[1764057856811,11.61074825,2904.1,2904.0,0.001]
[1764057857332,12.78672425,2904.1,2904.0,0.001]
[1764057858250,14.34655225,2904.1,2904.0,0.001]
[1764057858401,14.95513825,2904.1,2904.0,0.001]
[1764057858603,14.95513825,2904.1,2903.1,0.088]
[1764057858604,0.405504,2903.9,2903.1,0.088]
[1764057858800,1.13109811,2903.7,2903.1,0.088]
[1764057859525,0.405504,2903.5,2903.1,0.088]
[1764057860034,3.44459371,2903.1,2902.7,0.1]
[1764057860339,0.405504,2903.3,2903.0,0.1]
[1764057860534,0.405504,2903.3,2903.0,0.3813]
[1764057860703,0.405504,2903.3,2903.2,0.3693]
[1764057860903,3.44402657,2903.6,2903.2,0.3693]
[1764057861102,1.13109811,2903.5,2903.4,0.2813]
[1764057862102,0.72559411,2903.6,2903.4,0.5626]
[1764057862308,1.13109811,2903.6,2903.5,0.1]
[1764057862505,1.13109811,2903.6,2903.5,0.3813]
[1764057863139,1.10689411,2903.6,2903.5,0.6626]
[1764057863435,0.72559411,2903.7,2903.6,0.1]
[1764057863611,0.72559411,2903.7,2903.6,0.6626]
[1764057864238,4.16947605,2903.7,2903.6,0.2813]
[1764057864826,0.72559411,2903.6,2903.4,0.101]
[1764057865615,0.72559411,2903.6,2903.5,0.2813]
[1764057866240,4.16959466,2903.6,2903.5,0.2813]
[1764057866612,0.6646,2903.9,2903.5,0.5626]
[1764057866918,0.72759411,2903.9,2903.8,0.2813]
[1764057867132,4.17123886,2903.9,2903.8,0.2813]
[1764057867752,0.72559411,2903.8,2903.7,0.1]
[1764057868050,0.72759411,2903.9,2903.8,0.2813]
[1764057868344,4.17123886,2903.9,2903.8,0.2813]
[1764057868546,7.61488361,2903.9,2903.7,0.1]
[1764057869048,10.69470121,2903.9,2903.6,0.1]
[1764057869250,0.405504,2903.8,2903.5,0.1]
[1764057869551,3.4853216,2903.8,2903.4,0.001]
[1764057870237,3.4853216,2903.6,2903.4,0.001]
[1764057871632,3.51934229,2903.6,2903.4,0.001]
[1764057872234,6.92941145,2903.6,2903.4,0.001]
[1764057872957,1.62699811,2903.5,2903.4,0.001]
[1764057873129,1.84799811,2903.5,2903.4,0.001]
[1764057873655,2.3485188,2903.5,2903.4,0.001]
[1764057873825,2.31449811,2903.5,2903.4,0.001]
[1764057874152,5.75861727,2903.5,2903.4,0.001]
[1764057875836,5.29211727,2903.5,2903.4,0.001]
[1764057876754,5.75861727,2903.5,2903.4,0.001]
[1764057879140,5.29211727,2903.5,2903.4,0.001]
[1764057879728,5.75861727,2903.5,2903.4,0.001]
[1764057880636,0.626504,2903.5,2903.4,0.2823]
[1764057880835,0.405504,2903.5,2903.4,0.2823]
[1764057881036,0.2823,2903.6,2903.4,0.5636]
[1764057881241,0.002,2903.9,2903.4,0.5636]
[1764057881242,3.84938594,2903.7,2903.4,0.2823]
[1764057881448,1.13109811,2903.6,2903.5,0.2813]
[1764057881847,0.405504,2903.5,2903.4,0.001]
[1764057882054,1.367904,2903.5,2903.4,0.001]
[1764057882360,0.405504,2903.5,2903.4,0.001]
[1764057882559,3.84962316,2903.5,2903.4,0.001]
[1764057882766,3.84962316,2903.5,2903.4,0.2823]
[1764057882767,4.57521727,2903.5,2903.4,0.2823]
[1764057884453,4.57521727,2903.5,2903.4,0.001]
[1764057885032,5.07111727,2903.5,2903.4,0.001]
[1764057885235,5.44141727,2903.5,2903.4,0.001]
[1764057885761,4.94551727,2903.5,2903.4,0.001]
[1764057885961,4.16971327,2903.5,2903.4,0.3823]
[1764057886168,0.72559411,2903.5,2903.4,0.3823]
[1764057886361,4.16971327,2903.5,2903.4,0.3823]
[1764057887369,4.16971327,2903.5,2903.4,0.2823]
[1764057889067,0.72559411,2903.5,2903.4,0.2823]
[1764057889275,0.72559411,2903.5,2903.4,0.3823]
[1764057889477,4.16971327,2903.5,2903.4,0.3823]
[1764057889646,0.72559411,2903.5,2903.4,0.3823]
[1764057889848,4.16971327,2903.5,2903.4,0.3823]
[1764057890641,0.72559411,2903.5,2903.4,0.3823]
[1764057891146,0.72559411,2903.5,2903.4,0.6636]
[1764057891621,3.44391342,2903.7,2903.4,0.6636]
[1764057891622,0.002,2903.9,2903.5,0.1]
[1764057891761,0.002,2903.9,2903.8,0.3813]
[1764057891959,0.72759411,2903.9,2903.8,0.3813]
[1764057892272,4.17123886,2903.9,2903.8,0.3813]
[1764057892784,4.17123886,2903.9,2903.4,3.44523185]
[1764057892785,0.405504,2903.8,2903.4,0.001]
[1764057892987,0.405504,2903.8,2903.4,0.3823]
[1764057893150,1.03707703,2903.9,2903.7,0.2813]
[1764057893478,0.72759411,2903.9,2903.8,0.6626]
[1764057894443,4.17123886,2903.9,2903.8,0.6626]
[1764057894643,4.17123886,2903.9,2903.8,0.3813]
[1764057895418,0.405504,2903.8,2903.4,0.001]
[1764057895584,0.888604,2903.8,2903.5,0.22]
[1764057895745,0.405504,2903.8,2903.4,0.001]
[1764057895945,0.405504,2903.8,2903.5,0.1]
[1764057896348,7.61488361,2903.9,2903.7,0.2813]
[1764057896349,4.17132713,2903.9,2903.7,0.2813]
[1764057896548,4.17132713,2903.9,2903.8,0.1]
[1764057896749,4.17132713,2903.9,2903.4,0.2823]
[1764057896750,8.13538084,2903.9,2903.6,0.1]
[1764057896985,8.10136015,2903.9,2903.6,0.1]
[1764057897389,7.61506015,2903.9,2903.6,0.1]
[1764057900101,3.0789789,2903.8,2903.6,0.1]
[1764057900468,0.002,2903.9,2903.8,0.1]
[1764057900663,3.44564475,2903.9,2903.8,0.3813]
[1764057900912,0.002,2903.9,2903.8,0.3813]
[1764057901267,0.002,2903.9,2903.8,0.6626]
[1764057902685,0.002,2903.9,2903.8,4.10636334]
[1764057903582,0.002,2903.9,2903.8,4.00636334]
[1764057903773,0.002,2903.9,2903.8,4.10636334]
[1764057904282,0.002,2903.9,2903.8,0.6626]
[1764057904868,0.002,2903.9,2903.8,4.10636334]
[1764057906806,0.002,2903.9,2903.8,4.14080097]
[1764057907706,0.002,2903.9,2903.8,0.8826]
[1764057907927,0.002,2904.5,2903.8,14.85520413]
[1764057908084,0.002,2904.5,2904.4,0.3813]
[1764057908288,0.002,2904.5,2904.4,1.32689411]
[1764057908487,0.002,2904.5,2904.4,1.60819411]
[1764057909291,0.002,2904.5,2904.4,0.8826]
[1764057909616,0.002,2905.0,2904.5,4.10251]
[1764057909820,0.002,2905.0,2904.9,4.18587301]
[1764057909984,0.002,2905.0,2904.9,4.7693534]
[1764057910182,0.002,2905.0,2904.9,5.0506534]
[1764057912307,0.002,2905.0,2904.9,4.32505929]
[1764057913113,0.002,2905.0,2904.9,4.10505929]
[1764057913281,0.002,2905.0,2904.9,4.32505929]
[1764057913814,0.002,2905.0,2904.9,0.3813]
[1764057914013,0.002,2905.0,2904.9,0.1]
[1764057914236,3.5672789,2905.0,2904.9,0.32]
[1764057914440,0.002,2905.0,2904.9,0.6013]
[1764057914618,0.002,2905.0,2904.9,0.8826]
[1764057914942,0.002,2905.0,2904.9,5.0506534]
[1764057915144,0.002,2906.2,2904.9,5.0506534]
[1764057915145,0.002,2906.2,2906.1,0.1]
[1764057915441,0.002,2906.2,2906.1,0.5973]
[1764057916434,0.002,2906.2,2906.1,4.31563781]
[1764057916633,0.002,2906.2,2906.1,0.8746]
[1764057916805,0.002,2906.2,2906.1,0.5973]
[1764057917009,0.4883,2906.2,2906.1,0.1]
[1764057917237,0.982,2906.2,2905.9,0.1]
[1764057917648,0.002,2906.2,2906.0,0.22]
[1764057917911,0.002,2906.2,2906.1,0.3773]
[1764057918510,0.002,2906.2,2906.1,0.5973]
[1764057918956,0.002,2906.2,2906.1,0.3773]
[1764057919154,0.002,2906.2,2906.1,0.5973]
[1764057920662,0.002,2906.2,2906.1,0.1]